bitfinex-derivatives/quotes_SOLF0:USTF0_20251107
["timestamp","ask_amount","ask_price","bid_price","bid_amount"]
[1762546022685,2.98974958,163.56,163.52,0.04082919]
[1762546023083,2.98974958,163.56,163.42,8.58574346]
[1762546023285,2.95,163.56,163.43,62.6]
[1762546023479,2.95,163.54,163.45,1.06417137]
[1762546023887,2.95,163.49,163.43,62.6]
[1762546024079,2.95,163.49,163.4,18.3]
[1762546024080,0.04448864,163.48,163.44,0.04099692]
[1762546024282,2.95,163.47,163.38,62.64]
[1762546024483,2.95,163.47,163.44,0.04481388]
[1762546024889,2.95,163.46,163.44,0.04481388]
[1762546025088,2.95,163.46,163.38,62.64]
[1762546025284,2.95,163.46,163.24,8.58574346]
[1762546025285,2.95,163.46,163.33,62.64]
[1762546025783,2.95,163.43,163.34,6.5779389]
[1762546025983,0.04522775,163.4,163.37,0.03997239]
[1762546026592,2.99522775,163.4,163.37,0.03997239]
[1762546026782,0.04522775,163.4,163.37,0.03997239]
[1762546026986,2.99522775,163.4,163.37,0.03997239]
[1762546027688,0.04522775,163.4,163.37,0.03997239]
[1762546028188,0.04522775,163.4,163.3,8.58574346]
[1762546028189,2.95,163.38,163.3,5.5145]
[1762546028488,2.95,163.43,163.31,8.58574346]
[1762546028795,2.95,163.47,163.39,8.58574346]
[1762546029089,2.95,163.6,163.4,62.7]
[1762546029296,2.99650528,163.52,163.48,0.04526596]
[1762546029591,2.99650528,163.52,163.4,62.7]
[1762546029592,2.99204502,163.52,163.4,62.7]
[1762546029792,94.21224346,163.61,163.31,1.06508332]
[1762546029793,2.95,163.49,163.37,63.0]
[1762546030593,2.95,163.49,163.4,5.5111]
[1762546030789,2.99564629,163.45,163.37,63.0]
[1762546031004,8.58574346,163.57,163.37,63.0]
[1762546031005,2.99623102,163.43,163.37,63.0]
[1762546031291,0.03981253,163.42,163.35,8.58574346]
[1762546032086,0.03981253,163.42,163.39,5.5114]
[1762546032389,0.03981253,163.42,163.35,8.58574346]
[1762546033691,0.03981253,163.42,163.4,5.511]
[1762546033896,0.03981253,163.42,163.35,8.58574346]
[1762546034087,0.04652228,163.4,163.36,62.0]
[1762546034397,2.95,163.58,163.37,8.58574346]
[1762546034894,2.95,163.53,163.44,5.5099]
[1762546035195,2.95,163.53,163.41,8.58574346]
[1762546035383,0.0467782,163.49,163.45,0.03983846]
[1762546035783,2.9967782,163.49,163.45,0.03983846]
[1762546036190,0.0467782,163.49,163.45,0.03983846]
[1762546037195,2.9967782,163.49,163.45,0.03983846]
[1762546038192,2.95,163.46,163.39,63.18]
[1762546038493,2.95,163.46,163.33,8.58574346]
[1762546038693,2.95,163.46,163.33,71.78574346]
[1762546038995,2.95,163.43,163.33,71.78574346]
[1762546039197,0.04680345,163.4,163.36,0.02099629]
[1762546040391,2.99680345,163.4,163.36,0.02099629]
[1762546041893,0.04680345,163.4,163.36,0.02099629]
[1762546042987,19.59744346,163.57,163.36,0.02099629]
[1762546042988,2.95,163.49,163.37,8.58574346]
[1762546043789,2.95,163.49,163.41,8.58574346]
[1762546043995,2.95,163.49,163.41,71.78574346]
[1762546044200,11.0112,163.58,163.43,0.04448074]
[1762546044201,2.99100966,163.47,163.43,0.04448074]
[1762546044491,2.99698928,163.47,163.43,0.04059515]
[1762546044894,4.71133247,163.46,163.43,0.04059515]
[1762546045194,2.95,163.46,163.43,0.04059515]
[1762546045592,2.95,163.44,163.34,8.58574346]
[1762546045788,4.72141986,163.43,163.34,8.58574346]
[1762546046000,2.95,163.44,163.34,8.58574346]
[1762546046190,7.67100755,163.43,163.34,8.58574346]
[1762546046388,2.95,163.41,163.31,8.58574346]
[1762546046697,0.04552144,163.38,163.34,0.02720459]
[1762546046904,0.0396009,163.38,163.34,0.02720459]
[1762546047093,0.0396009,163.38,163.36,5.5125]
[1762546047498,0.0396009,163.38,163.34,0.02720459]
[1762546048001,0.0396009,163.38,163.35,62.0]
[1762546049201,0.0396009,163.38,163.36,5.5125]
[1762546049406,0.0396009,163.38,163.36,68.9525]
[1762546050498,0.0396009,163.38,163.36,63.44]
[1762546050700,4.7519496,163.37,163.36,63.44]
[1762546051005,0.0396009,163.38,163.36,63.44]
[1762546051603,4.75625058,163.37,163.36,63.44]
[1762546051807,4.75625058,163.37,163.36,68.9525]
[1762546052011,4.75625058,163.37,163.36,63.44]
[1762546052603,7.74625058,163.37,163.36,63.44]
[1762546052805,2.99,163.36,163.34,0.02720459]
[1762546053001,4.75625058,163.35,163.34,0.02720459]
[1762546053512,7.74625058,163.35,163.34,0.02720459]
[1762546053810,4.75625058,163.35,163.34,0.02720459]
[1762546056700,4.75625058,163.35,163.26,5.5158]
[1762546056701,8.96625058,163.35,163.26,5.5158]
[1762546056903,5.54487259,163.32,163.1,6.118]
[1762546057106,5.54487259,163.32,163.05,498.9119]
[1762546057107,2.99,163.3,163.23,1.06549095]
[1762546057301,7.74625058,163.29,163.23,1.06549095]
[1762546057507,2.99,163.27,163.23,1.06549095]
[1762546057706,4.75625058,163.26,163.23,1.06549095]
[1762546057903,0.04382156,163.27,163.23,1.06549095]
[1762546058412,0.04382156,163.27,163.25,5.5162]
[1762546059411,2.99,163.36,163.23,1.06549095]
[1762546059613,2.99,163.35,163.23,9.65123441]
[1762546060109,2.99,163.35,163.27,5.5156]
[1762546060110,5.54487259,163.33,163.27,5.5156]
[1762546060310,2.99,163.32,163.28,63.38]
[1762546060511,3.03230443,163.32,163.28,68.93727048]
[1762546060712,0.04230443,163.32,163.28,63.42217048]
[1762546060909,2.91230443,163.32,163.28,0.04217048]
[1762546061116,2.91230443,163.32,163.29,63.36]
[1762546061324,0.04230443,163.32,163.29,63.36]
[1762546061713,0.04230443,163.32,163.29,68.8748]
[1762546062024,8.45717702,163.32,163.22,63.36]
[1762546062213,2.87,163.32,163.24,5.5165]
[1762546062411,2.87,163.32,163.25,63.46]
[1762546063020,0.04254829,163.3,163.25,63.46]
[1762546063324,0.04254829,163.3,163.26,63.62]
[1762546063516,2.91254829,163.3,163.27,63.64]
[1762546063714,2.91254829,163.3,163.23,9.6513486]
[1762546063916,2.91254829,163.3,163.24,50.24]
[1762546064326,2.91254829,163.3,163.25,5.5162]
[1762546064821,0.04254829,163.3,163.26,62.0]
[1762546065427,0.04254829,163.3,163.28,5.5152]
[1762546065628,2.87,163.39,163.27,63.58]
[1762546065834,2.87,163.39,163.3,5.5145]
[1762546066025,2.87,163.38,163.3,5.5145]
[1762546066331,2.87,163.38,163.27,63.58]
[1762546066530,2.87,163.38,163.29,5.5149]
[1762546066831,2.91337029,163.35,163.32,0.04419937]
[1762546067732,0.04337029,163.35,163.32,0.04419937]
[1762546068830,2.91337029,163.35,163.32,63.64419937]
[1762546069028,0.04337029,163.35,163.32,63.64419937]
[1762546069932,0.04337029,163.35,163.33,5.5134]
[1762546070538,0.04337029,163.35,163.34,63.58]
[1762546071026,0.04337029,163.35,163.32,0.04419937]
[1762546071228,0.04337029,163.35,163.33,63.56]
[1762546071538,0.04337029,163.35,163.34,63.56]
[1762546072234,0.04337029,163.35,163.34,63.54]
[1762546073040,5.03137451,163.35,163.34,63.54]
[1762546073238,0.04337029,163.35,163.34,63.54]
[1762546073430,0.04337029,163.35,163.33,63.54]
[1762546074329,2.91337029,163.35,163.32,63.54419937]
[1762546074737,4.98942491,163.34,163.32,63.54419937]
[1762546075038,2.91337029,163.35,163.32,63.54419937]
[1762546075234,4.98969907,163.34,163.32,63.54419937]
[1762546075539,2.91337029,163.35,163.32,63.54419937]
[1762546075740,0.04337029,163.35,163.32,63.54419937]
[1762546076234,0.04337029,163.35,163.33,68.9734]
[1762546076441,0.04337029,163.35,163.34,63.56]
[1762546078241,2.91337029,163.35,163.32,0.04419937]
[1762546078534,0.04337029,163.35,163.32,0.04419937]
[1762546078743,0.04337029,163.35,163.33,5.5135]
[1762546079541,0.04337029,163.35,163.32,0.04419937]
[1762546080741,0.04337029,163.35,163.33,5.5135]
[1762546082044,0.04337029,163.35,163.32,0.04419937]
[1762546082740,2.89337029,163.35,163.32,0.04419937]
[1762546082937,0.04337029,163.35,163.32,0.04419937]
[1762546083136,2.89337029,163.35,163.32,0.04419937]
[1762546083644,2.85,163.33,163.27,5.5156]
[1762546083835,2.85,163.33,163.26,125.68]
[1762546084837,2.89380322,163.31,163.26,63.68]
[1762546085040,0.04031718,163.3,163.26,63.68]
[1762546085733,0.04031718,163.3,163.26,69.1959]
[1762546085940,0.04031718,163.3,163.26,63.68]
[1762546086537,0.04031718,163.3,163.28,5.5153]
[1762546087841,2.85,163.39,163.32,5.5139]
[1762546088141,2.85,163.37,163.23,1.06560514]
[1762546088337,16.54487259,163.4,163.23,1.06560514]
[1762546088338,2.85,163.35,163.23,1.06560514]
[1762546088539,2.85,163.32,163.23,1.06560514]
[1762546088842,0.043114,163.29,163.26,0.04031718]
[1762546089041,2.85,163.28,163.26,0.04031718]
[1762546089240,0.043114,163.29,163.26,0.04031718]
[1762546089641,0.043114,163.29,163.27,69.1556]
[1762546089829,0.043114,163.29,163.27,74.77432854]
[1762546091036,0.043114,163.29,163.28,62.0]
[1762546091537,2.85,163.43,163.28,62.0]
[1762546091733,2.85,163.41,163.28,62.0]
[1762546091932,5.70079871,163.45,163.28,62.0]
[1762546091933,2.85,163.39,163.28,62.0]
[1762546092131,2.85,163.38,163.28,62.0]
[1762546092334,2.85,163.36,163.28,62.0]
[1762546092544,0.04594661,163.34,163.3,0.03955761]
[1762546092940,0.04594661,163.34,163.31,5.5142]
[1762546093337,0.04594661,163.34,163.32,5.5138]
[1762546093538,2.89594661,163.34,163.3,0.03955761]
[1762546093941,0.04594661,163.34,163.31,5.5143]
[1762546095141,0.04594661,163.34,163.32,5.5139]
[1762546095450,0.04594661,163.34,163.32,69.1539]
[1762546095644,0.04594661,163.34,163.32,131.1539]
[1762546096049,2.89594661,163.34,163.32,62.0]
[1762546096344,2.89594661,163.34,163.3,0.03955761]
[1762546097146,0.04594661,163.34,163.31,5.61872854]
[1762546097544,0.04594661,163.34,163.32,5.5137]
[1762546098950,2.85,163.42,163.31,5.61872854]
[1762546099144,2.85,163.42,163.35,5.61872854]
[1762546099348,2.85,163.42,163.36,63.58]
[1762546099749,10.46,163.43,163.36,63.58]
[1762546100159,0.04283558,163.41,163.38,0.0450331]
[1762546100745,2.85,163.4,163.38,0.0450331]
[1762546101150,0.04283558,163.41,163.38,0.0450331]
[1762546101656,0.04283558,163.41,163.38,5.66376164]
[1762546101854,0.04283558,163.41,163.39,5.5115]
[1762546102152,2.85,163.48,163.38,5.66376164]
[1762546102459,2.85,163.44,163.38,63.58]
[1762546102660,2.85,163.42,163.38,63.58]
[1762546103055,2.89642475,163.42,163.38,63.62547476]
[1762546105850,0.04642475,163.42,163.38,63.62547476]
[1762546106250,0.04642475,163.42,163.4,5.5112]
[1762546106455,2.85,163.5,163.41,5.61872854]
[1762546106862,2.85,163.5,163.45,5.5096]
[1762546107064,5.70079871,163.57,163.41,5.61872854]
[1762546107065,2.85,163.54,163.46,63.52]
[1762546107264,13.16059817,163.61,163.46,63.52]
[1762546107265,7.62229159,163.53,163.46,63.52]
[1762546107453,0.0447308,163.51,163.48,0.04545804]
[1762546107654,0.04461837,163.51,163.48,0.04660025]
[1762546107862,2.89461837,163.51,163.48,0.04660025]
[1762546108862,0.04461837,163.51,163.48,0.04660025]
[1762546109455,0.04461837,163.51,163.49,5.5081]
[1762546109653,11.1,163.59,163.5,5.61872854]
[1762546109867,8.25,163.59,163.53,5.61872854]
[1762546110561,0.04278003,163.58,163.53,5.61872854]
[1762546110761,0.04278003,163.58,163.56,5.5059]
[1762546110958,0.04278003,163.58,163.57,63.58]
[1762546112569,0.04278003,163.58,163.54,0.041105]
[1762546112865,0.04278003,163.58,163.55,63.54]
[1762546113068,2.86,163.67,163.57,5.61872854]
[1762546113265,2.86,163.67,163.58,67.5051]
[1762546113459,2.86,163.67,163.59,63.52]
[1762546113862,2.86,163.66,163.6,63.5]
[1762546114062,11.32,163.69,163.6,63.5]
[1762546114063,2.86,163.64,163.61,0.04505148]
[1762546116360,2.86,163.63,163.57,63.42]
[1762546117468,2.86,163.61,163.58,0.04664823]
[1762546117771,2.86,163.61,163.58,0.04305886]
[1762546118668,0.04321764,163.62,163.46,270.22593517]
[1762546118669,2.86,163.6,163.46,270.22593517]
[1762546118867,102.60549871,163.69,163.49,5.61872854]
[1762546118868,2.86,163.59,163.49,5.61872854]
[1762546119471,2.86,163.68,163.52,5.61872854]
[1762546119671,2.86,163.66,163.53,63.44]
[1762546119871,0.04039754,163.62,163.58,0.04169834]
[1762546120072,2.86,163.61,163.58,0.04169834]
[1762546122077,0.04039754,163.62,163.58,0.04169834]
[1762546122472,3.01039754,163.62,163.58,0.04169834]
[1762546125977,2.97,163.6,163.58,0.04169834]
[1762546126376,8.4748,163.6,163.58,0.04169834]
[1762546126582,2.97,163.59,163.58,0.04169834]
[1762546128974,3.01039754,163.62,163.58,0.04169834]
[1762546133077,0.04039754,163.62,163.58,0.04169834]
[1762546133680,3.01039754,163.62,163.58,0.04169834]
[1762546134278,8.51449754,163.62,163.58,0.04169834]
[1762546134478,2.97,163.61,163.58,0.04169834]
[1762546134675,8.4744,163.61,163.58,0.04169834]
[1762546134885,2.97,163.6,163.58,0.04169834]
[1762546136172,0.04039754,163.62,163.58,0.04169834]
[1762546136173,3.01039754,163.62,163.58,0.04169834]
[1762546136584,0.04039754,163.62,163.58,0.04169834]
[1762546137079,3.01039754,163.62,163.58,0.04169834]
[1762546140179,0.04039754,163.62,163.58,0.04169834]
[1762546140583,3.01039754,163.62,163.58,0.04169834]
[1762546141286,2.97,163.61,163.58,0.04169834]
[1762546142988,8.4745,163.61,163.58,0.04169834]
[1762546143291,2.92,163.59,163.58,0.04169834]
[1762546144289,2.92,163.58,163.52,40.74]
[1762546144783,2.92,163.58,163.49,62.0]
[1762546144784,4.62982463,163.57,163.49,62.0]
[1762546144989,2.92,163.56,163.48,71.60481881]
[1762546145286,2.92,163.53,163.5,0.04676559]
[1762546145485,2.96335104,163.53,163.5,0.04151583]
[1762546146383,0.04335104,163.53,163.51,5.5075]
[1762546146583,2.92,163.61,163.5,0.04151583]
[1762546146783,7.55498146,163.6,163.49,18.35]
[1762546146982,4.63498146,163.59,163.49,18.35]
[1762546147186,5.70079871,163.65,163.49,18.35]
[1762546147379,7.55680592,163.64,163.52,8.58481881]
[1762546147584,4.63680592,163.63,163.53,63.02]
[1762546147889,0.04005247,163.6,163.56,0.04646085]
[1762546148480,2.96005247,163.6,163.56,0.04646085]
[1762546149792,2.92,163.58,163.56,0.04646085]
[1762546150285,4.69891238,163.57,163.56,0.04646085]
[1762546150487,0.04005247,163.6,163.56,0.04646085]
[1762546150689,0.04005247,163.6,163.58,5.5051]
[1762546151781,0.04005247,163.6,163.58,67.5051]
[1762546152092,0.04005247,163.6,163.58,62.0]
[1762546152388,0.04005247,163.6,163.59,62.98]
[1762546152594,2.92,163.68,163.59,62.98]
[1762546152595,2.92,163.68,163.64,5.5031]
[1762546152887,2.92,163.66,163.58,62.0]
[1762546153087,2.92,163.64,163.6,5.5044]
[1762546153283,2.92,163.67,163.59,62.98]
[1762546153478,4.5463809,163.66,163.59,62.98]
[1762546153683,0.04420999,163.65,163.64,5.503]
[1762546155391,0.04420999,163.65,163.63,0.03905547]
[1762546156185,0.04420999,163.65,163.63,62.97905547]
[1762546156587,2.96420999,163.65,163.63,0.03905547]
[1762546156984,2.96420999,163.65,163.58,62.92]
[1762546157882,7.46239459,163.64,163.58,62.92]
[1762546158082,2.92,163.63,163.59,0.03973222]
[1762546158296,2.96579756,163.63,163.59,0.03973222]
[1762546160294,0.04579756,163.63,163.59,0.03973222]
[1762546160597,0.04579756,163.63,163.6,5.5044]
[1762546160796,0.04579756,163.63,163.59,0.03973222]
[1762546161497,0.04579756,163.63,163.61,5.5041]
[1762546164804,0.04579756,163.63,163.59,0.03973222]
[1762546165011,0.04579756,163.63,163.6,62.84]
[1762546165199,2.92,163.62,163.59,0.03973222]
[1762546167709,2.92,163.62,163.59,5.54453222]
[1762546167908,2.92,163.62,163.59,0.03973222]
[1762546169108,2.92,163.62,163.59,5.54453222]
[1762546169508,2.92,163.62,163.59,0.03973222]
[1762546170608,0.04579756,163.63,163.59,0.03973222]
[1762546170815,2.92,163.7,163.6,8.58481881]
[1762546171496,2.92,163.7,163.65,5.5028]
[1762546171710,2.92,163.7,163.64,62.82]
[1762546171906,2.92,163.68,163.65,0.04288366]
[1762546177307,2.92,163.68,163.65,5.54568366]
[1762546178211,2.92,163.68,163.66,5.5025]
[1762546178508,0.04392236,163.69,163.65,0.04288366]
[1762546179515,0.04392236,163.69,163.66,5.5024]
[1762546180217,3.04392236,163.69,163.65,62.74288366]
[1762546181111,3.04392236,163.69,163.66,5.5024]
[1762546181314,0.04392236,163.69,163.65,62.74288366]
[1762546182015,0.04392236,163.69,163.67,5.5021]
[1762546183217,0.04392236,163.69,163.65,62.74288366]
[1762546184220,0.04392236,163.69,163.67,5.502]
[1762546185814,0.04392236,163.69,163.65,5.54558366]
[1762546185815,3.16392236,163.69,163.65,5.54558366]
[1762546186124,0.04392236,163.69,163.65,62.68288366]
[1762546186918,0.04392236,163.69,163.67,5.5021]
[1762546187317,3.16392236,163.69,163.67,5.5021]
[1762546187822,0.04392236,163.69,163.67,5.5021]
[1762546188312,3.16392236,163.69,163.65,68.18558366]
[1762546188916,3.16392236,163.69,163.66,5.5024]
[1762546189315,0.04392236,163.69,163.66,5.5024]
[1762546189614,0.04392236,163.69,163.68,5.5019]
[1762546190318,0.04392236,163.69,163.65,62.68288366]
[1762546190513,3.16392236,163.69,163.65,62.68288366]
[1762546190714,0.04392236,163.69,163.65,62.68288366]
[1762546191117,3.16392236,163.69,163.66,5.5024]
[1762546191317,3.16392236,163.69,163.66,68.1024]
[1762546191614,3.16392236,163.69,163.66,62.6]
[1762546194220,3.16392236,163.69,163.66,68.1023]
[1762546194813,0.04392236,163.69,163.67,5.5021]
[1762546195010,3.16392236,163.69,163.67,5.5021]
[1762546195816,0.04392236,163.69,163.67,5.5021]
[1762546196019,3.16392236,163.69,163.66,62.6]
[1762546196318,3.16392236,163.69,163.66,64.74925421]
[1762546199519,0.04392236,163.69,163.66,64.74925421]
[1762546200222,0.04392236,163.69,163.68,2.14925421]
[1762546201226,0.04392236,163.69,163.68,3.36925421]
[1762546201432,10.82,163.75,163.74,2.14925421]
[1762546201727,10.82,163.75,163.74,64.60925421]
[1762546201925,10.82,163.75,163.74,62.46]
[1762546202231,13.94,163.75,163.74,62.46]
[1762546202729,2.95,163.74,163.7,11.84]
[1762546203130,2.95,163.72,163.66,62.5]
[1762546203326,2.95,163.7,163.66,62.5]
[1762546203722,2.99238809,163.7,163.66,62.54097908]
[1762546203922,2.95,163.69,163.66,62.54097908]
[1762546209338,2.95,163.69,163.66,68.04347908]
[1762546209828,2.95,163.69,163.66,62.54097908]
[1762546210239,7.92198572,163.68,163.66,62.54097908]
[1762546210440,2.95,163.68,163.66,62.54097908]
[1762546211050,7.92208395,163.67,163.66,0.04097908]
[1762546211241,2.95,163.66,163.61,72.63]
[1762546211440,2.95,163.64,163.61,72.63]
[1762546211748,5.69645929,163.7,163.61,72.63]
[1762546211749,2.95,163.66,163.61,72.63]
[1762546211947,7.92367508,163.65,163.61,72.63]
[1762546212156,4.97367508,163.64,163.61,72.67257747]
[1762546212341,0.0455168,163.65,163.61,72.67257747]
[1762546212741,2.9955168,163.65,163.61,72.67257747]
[1762546212943,4.97446462,163.64,163.61,72.67257747]
[1762546213145,2.95,163.64,163.61,10.21257747]
[1762546213645,4.975247,163.63,163.61,10.21257747]
[1762546213850,0.0455168,163.65,163.61,10.21257747]
[1762546214650,2.9955168,163.65,163.61,10.21257747]
[1762546214844,4.9760669,163.64,163.61,10.21257747]
[1762546215051,7.9260669,163.63,163.61,10.21257747]
[1762546215241,2.95,163.63,163.61,10.21257747]
[1762546215440,4.97834002,163.62,163.61,10.21257747]
[1762546215648,2.95,163.63,163.61,10.21257747]
[1762546216044,2.9955168,163.65,163.61,10.21257747]
[1762546216353,7.92741887,163.64,163.61,10.21257747]
[1762546216555,4.97741887,163.63,163.61,10.21257747]
[1762546216756,2.95,163.64,163.61,10.21257747]
[1762546216952,4.97768827,163.63,163.61,10.21257747]
[1762546217152,2.95,163.64,163.61,10.21257747]
[1762546217347,7.92666339,163.63,163.61,10.21257747]
[1762546217554,8.4985168,163.65,163.61,10.21257747]
[1762546217852,2.95,163.63,163.61,10.21257747]
[1762546218352,2.9955168,163.65,163.61,10.21257747]
[1762546218547,7.92556295,163.64,163.61,10.21257747]
[1762546218753,0.0455168,163.65,163.61,10.21257747]
[1762546218947,7.92515272,163.64,163.61,10.21257747]
[1762546219153,4.97515272,163.63,163.61,10.21257747]
[1762546219453,2.95,163.64,163.61,10.21257747]
[1762546219653,4.97471906,163.63,163.61,10.21257747]
[1762546219959,2.95,163.64,163.61,10.21257747]
[1762546220252,4.97471906,163.63,163.61,10.21257747]
[1762546220455,8.4534,163.64,163.61,10.21257747]
[1762546220663,7.9238487,163.63,163.61,10.21257747]
[1762546220842,2.95,163.63,163.61,10.21257747]
[1762546221048,2.95,163.62,163.61,10.21257747]
[1762546221264,2.9955168,163.65,163.61,10.21257747]
[1762546221461,4.97290197,163.64,163.61,10.21257747]
[1762546221664,8.4985168,163.65,163.61,10.21257747]
[1762546221959,0.0455168,163.65,163.61,10.21257747]
[1762546222144,4.97205981,163.64,163.61,10.21257747]
[1762546222349,2.9955168,163.65,163.61,12.36329069]
[1762546222946,0.0455168,163.65,163.61,12.36329069]
[1762546223349,0.0455168,163.65,163.61,10.21257747]
[1762546223553,0.0455168,163.65,163.63,2.15071322]
[1762546224650,2.9955168,163.65,163.61,12.36329069]
[1762546224848,2.95,163.63,163.61,10.21257747]
[1762546226760,7.92081954,163.62,163.61,10.21257747]
[1762546227058,0.0455168,163.65,163.61,10.21257747]
[1762546227265,10.47351493,163.64,163.62,2.15071322]
[1762546227464,5.5033,163.64,163.62,2.15071322]
[1762546228363,4.97063133,163.63,163.62,2.15071322]
[1762546228661,5.5039,163.62,163.61,10.21257747]
[1762546228850,13.42489339,163.62,163.61,10.21257747]
[1762546229454,13.42489339,163.62,163.61,0.61182477]
[1762546229658,13.42489339,163.62,163.61,0.04257747]
[1762546230263,5.5061,163.56,163.54,2.15071322]
[1762546230458,2.95,163.61,163.52,62.46]
[1762546230661,7.91921875,163.6,163.52,62.46]
[1762546230861,5.5061,163.56,163.52,62.46]
[1762546231166,2.95,163.6,163.52,62.46]
[1762546231463,5.5057,163.57,163.54,0.04654779]
[1762546231760,2.99208141,163.58,163.54,0.04654557]
[1762546231962,2.95,163.55,163.54,0.04654557]
[1762546232168,3.03,163.54,163.44,68.06535918]
[1762546232462,7.99719872,163.53,163.44,68.06535918]
[1762546232664,10.47459872,163.52,163.44,68.06535918]
[1762546232965,3.03,163.57,163.44,68.06535918]
[1762546233166,0.04018613,163.5,163.47,0.04032179]
[1762546233358,0.04438004,163.5,163.47,0.04446041]
[1762546234459,8.58248004,163.5,163.47,0.04446041]
[1762546234661,3.07438004,163.5,163.47,0.04446041]
[1762546234862,8.5386,163.49,163.47,0.04446041]
[1762546235058,3.03,163.48,163.47,0.04446041]
[1762546235257,7.98117217,163.48,163.36,62.48]
[1762546235462,5.60535918,163.52,163.36,62.48]
[1762546235463,7.98145279,163.47,163.36,62.48]
[1762546235665,9.63,163.46,163.36,62.48]
[1762546235871,9.63,163.46,163.39,5.60535918]
[1762546236167,0.04408257,163.44,163.41,0.04298697]
[1762546236567,0.04408257,163.44,163.42,62.48]
[1762546240262,3.07408257,163.44,163.41,0.04298697]
[1762546240467,0.04408257,163.44,163.41,0.04298697]
[1762546242870,0.04408257,163.44,163.41,5.55378697]
[1762546243362,0.04408257,163.44,163.41,0.04298697]
[1762546245674,0.04408257,163.44,163.41,5.55378697]
[1762546246774,0.04408257,163.44,163.41,11.15914615]
[1762546246969,0.04408257,163.44,163.42,5.5104]
[1762546247268,9.63,163.46,163.41,5.64834615]
[1762546247468,9.63,163.46,163.44,5.60535918]
[1762546247674,9.63,163.46,163.45,62.52]
[1762546248068,9.63,163.46,163.43,62.52]
[1762546248674,2.91,163.45,163.43,62.52]
[1762546249271,2.91,163.45,163.41,0.04298697]
[1762546249468,2.91,163.45,163.41,62.56298697]
[1762546250476,9.63,163.46,163.41,62.56298697]
[1762546250670,9.63,163.46,163.41,0.04298697]
[1762546250872,12.54,163.46,163.42,62.52]
[1762546251875,2.91,163.45,163.42,62.52]
[1762546252373,2.91,163.45,163.41,0.04298697]
[1762546253982,2.91,163.44,163.41,0.04298697]
[1762546254471,9.63,163.46,163.41,0.04298697]
[1762546254682,12.54,163.46,163.41,0.04298697]
[1762546255674,2.91,163.45,163.41,0.04298697]
[1762546255870,2.91,163.45,163.41,5.55388697]
[1762546256071,2.91,163.45,163.41,0.04298697]
[1762546258676,2.91,163.44,163.41,0.04298697]
[1762546265181,2.91,163.44,163.41,5.55388697]
[1762546265579,2.91,163.44,163.41,0.04298697]
[1762546266377,5.5105,163.43,163.41,0.04298697]
[1762546266579,2.98,163.42,163.41,0.04298697]
[1762546266979,3.01970333,163.44,163.41,0.04298697]
[1762546267280,2.98,163.42,163.41,0.04298697]
[1762546267482,4.89410891,163.42,163.37,62.52]
[1762546267681,0.03970333,163.44,163.3,8.60347567]
[1762546267682,2.98,163.39,163.3,8.60347567]
[1762546267881,2.98,163.39,163.33,62.52]
[1762546268077,2.98,163.39,163.33,68.0336]
[1762546268377,2.98,163.42,163.33,62.52]
[1762546268584,0.03862034,163.38,163.33,62.52]
[1762546268786,0.03862034,163.38,163.37,5.5122]
[1762546269081,0.03862034,163.38,163.36,0.04136571]
[1762546269282,3.01862034,163.38,163.36,0.04136571]
[1762546269490,0.03862034,163.38,163.36,0.04136571]
[1762546270682,0.03862034,163.38,163.36,5.55386571]
[1762546273174,2.98,163.45,163.39,5.5116]
[1762546273381,7.99982676,163.44,163.4,62.54]
[1762546273673,5.01982676,163.43,163.4,62.54]
[1762546273880,2.98,163.44,163.4,62.54]
[1762546274078,5.02041348,163.43,163.4,62.5823666]
[1762546274279,5.02041348,163.42,163.4,62.5823666]
[1762546274478,0.04583075,163.44,163.4,62.5823666]
[1762546274686,5.02629106,163.43,163.4,62.5823666]
[1762546274883,0.04583075,163.44,163.4,62.5823666]
[1762546276591,0.04583075,163.44,163.42,5.5105]
[1762546276885,0.04583075,163.44,163.4,62.5823666]